[Event "*** Titled Tuesday Blitz"]
[Site "Chess.com"]
[Date "2021.03.30"]
[Round "6"]
[White "kingofthenil"]
[Black "Raud100"]
[Result "0-1"]
[WhiteElo "2712"]
[BlackElo "2395"]
[TimeControl "180+1"]
[EndTime "11:04:53 PDT"]
[Termination "Raud100 won by resignation"]

1. e4 {[%clk 0:03:00.9]} 1... d6 {[%clk 0:02:59.9]} 2. d4 {[%clk 0:03:00.9]}
2... Nf6 {[%clk 0:03:00.8]} 3. Nc3 {[%clk 0:03:00.7]} 3... g6 {[%clk 0:03:01]}
4. Bh6 {[%clk 0:03:01.3]} 4... Bxh6 {[%clk 0:02:59.9]} 5. Bc4 {[%clk 0:03:00]}
5... O-O {[%clk 0:02:57.1]} 6. Bb3 {[%clk 0:02:57.9]} 6... e5 {[%clk 0:02:53.9]}
7. Nge2 {[%clk 0:02:55.1]} 7... Nc6 {[%clk 0:02:52.5]} 8. h3 {[%clk 0:02:49.8]}
8... Re8 {[%clk 0:02:46.3]} 9. O-O {[%clk 0:02:46.9]} 9... exd4 {[%clk
0:02:42.1]} 10. Nxd4 {[%clk 0:02:47.8]} 10... Nxd4 {[%clk 0:02:36.9]} 11. Qxd4
{[%clk 0:02:47.9]} 11... Bg7 {[%clk 0:02:37.1]} 12. Qd3 {[%clk 0:02:48]} 12...
Be6 {[%clk 0:02:35.5]} 13. Rad1 {[%clk 0:02:47]} 13... Bxb3 {[%clk 0:02:34.2]}
14. axb3 {[%clk 0:02:47.9]} 14... Qd7 {[%clk 0:02:30.6]} 15. Rfe1 {[%clk
0:02:47.6]} 15... Qc6 {[%clk 0:02:27.7]} 16. Ra1 {[%clk 0:02:46.9]} 16... a6
{[%clk 0:02:26.3]} 17. b4 {[%clk 0:02:39.3]} 17... Rad8 {[%clk 0:02:23.2]} 18.
Ra5 {[%clk 0:02:38.1]} 18... Nd7 {[%clk 0:02:17.5]} 19. Nd5 {[%clk 0:02:36.2]}
19... Nb6 {[%clk 0:02:11.3]} 20. c3 {[%clk 0:02:27.3]} 20... Nxd5 {[%clk
0:02:10.1]} 21. Rxd5 {[%clk 0:02:28.2]} 21... Re5 {[%clk 0:01:55.1]} 22. Rd4
{[%clk 0:02:19.3]} 22... Rde8 {[%clk 0:01:50.3]} 23. Rc4 {[%clk 0:02:16.1]}
23... Qb5 {[%clk 0:01:36.9]} 24. Re3 {[%clk 0:02:16.4]} 24... c6 {[%clk
0:01:30.2]} 25. Rd4 {[%clk 0:02:05.6]} 25... Qxd3 {[%clk 0:01:28.6]} 26. Rdxd3
{[%clk 0:02:06.5]} 26... Rxe4 {[%clk 0:01:25.1]} 27. Rxe4 {[%clk 0:02:07.4]}
27... Rxe4 {[%clk 0:01:24.4]} 28. Kf1 {[%clk 0:02:05.5]} 28... d5 {[%clk
0:01:22.9]} 29. Rd1 {[%clk 0:02:02.9]} 29... f5 {[%clk 0:01:22.4]} 30. g3 {[%clk
0:02:01.1]} 30... Kf7 {[%clk 0:01:21.8]} 31. h4 {[%clk 0:02:01]} 31... h5 {[%clk
0:01:20.3]} 32. Rd3 {[%clk 0:02:00.1]} 32... Ke7 {[%clk 0:01:19.7]} 33. Rd1
{[%clk 0:02:00.1]} 33... Kd6 {[%clk 0:01:19.4]} 34. Ra1 {[%clk 0:01:59.7]} 34...
Kc7 {[%clk 0:01:19.1]} 35. Rd1 {[%clk 0:01:57.7]} 35... Kb6 {[%clk 0:01:19.3]}
36. f3 {[%clk 0:01:57.9]} 36... Re8 {[%clk 0:01:17.3]} 37. Kf2 {[%clk
0:01:58.8]} 37... Kb5 {[%clk 0:01:16.2]} 38. Ra1 {[%clk 0:01:52.2]} 38... Kc4
{[%clk 0:01:14.6]} 39. Ra5 {[%clk 0:01:52.7]} 39... Kb3 {[%clk 0:01:12.2]} 40.
g4 {[%clk 0:01:51.8]} 40... fxg4 {[%clk 0:01:07.5]} 41. fxg4 {[%clk 0:01:52.7]}
41... hxg4 {[%clk 0:01:07.8]} 42. b5 {[%clk 0:01:48.1]} 42... axb5 {[%clk
0:01:06.9]} 43. Ra7 {[%clk 0:01:48.2]} 43... Re7 {[%clk 0:01:06.7]} 44. Kg3
{[%clk 0:01:47.4]} 44... Kxb2 {[%clk 0:01:04]} 45. Kxg4 {[%clk 0:01:48]} 45...
Bf6 {[%clk 0:01:04.2]} 46. Ra8 {[%clk 0:01:44.3]} 46... Re4+ {[%clk 0:01:03.3]}
47. Kf3 {[%clk 0:01:43.2]} 47... Bxh4 {[%clk 0:00:54.9]} 48. c4 {[%clk 0:01:43]}
48... bxc4 {[%clk 0:00:53.7]} 49. Rb8 {[%clk 0:01:42.3]} 49... b5 {[%clk
0:00:53.4]} 50. Rb6 {[%clk 0:01:43.2]} 50... Re6 {[%clk 0:00:52.6]} 51. Kg4
{[%clk 0:01:43.2]} 51... Bf2 {[%clk 0:00:51.3]} 52. Rb7 {[%clk 0:01:42.3]} 52...
c3 {[%clk 0:00:50.4]} 53. Rf7 {[%clk 0:01:43.2]} 53... Be3 {[%clk 0:00:47.7]}
0-1

[Event "*** Titled Tuesday Blitz"]
[Site "Chess.com"]
[Date "2021.03.30"]
[Round "6"]
[White "DanilovVladimir"]
[Black "MatyChess1"]
[Result "0-1"]
[WhiteElo "2487"]
[BlackElo "2621"]
[TimeControl "180+1"]
[EndTime "11:04:58 PDT"]
[Termination "MatyChess1 won by resignation"]

1. d4 {[%clk 0:03:00.9]} 1... d5 {[%clk 0:03:00.3]} 2. c4 {[%clk 0:03:00.7]}
2... e6 {[%clk 0:03:00.5]} 3. Nc3 {[%clk 0:03:00.8]} 3... Bb4 {[%clk 0:03:00.2]}
4. Nf3 {[%clk 0:02:59.3]} 4... dxc4 {[%clk 0:02:59.8]} 5. e3 {[%clk 0:02:55.3]}
5... b5 {[%clk 0:02:59.7]} 6. a4 {[%clk 0:02:53.2]} 6... c6 {[%clk 0:02:59.7]}
7. Ne5 {[%clk 0:02:51.1]} 7... Bb7 {[%clk 0:02:54.9]} 8. Qf3 {[%clk 0:02:43]}
8... Qc7 {[%clk 0:02:52.7]} 9. g3 {[%clk 0:02:38.6]} 9... c5 {[%clk 0:02:46.1]}
10. Bg2 {[%clk 0:02:24]} 10... Bxf3 {[%clk 0:02:39.1]} 11. Bxf3 {[%clk
0:02:24.3]} 11... f6 {[%clk 0:02:30.2]} 12. Bxa8 {[%clk 0:02:15.8]} 12... fxe5
{[%clk 0:02:30.2]} 13. dxc5 {[%clk 0:02:12]} 13... Nf6 {[%clk 0:02:21.2]} 14.
axb5 {[%clk 0:02:10.2]} 14... O-O {[%clk 0:02:16.9]} 15. O-O {[%clk 0:01:44.1]}
15... Nbd7 {[%clk 0:02:13.8]} 16. b6 {[%clk 0:01:27.6]} 16... axb6 {[%clk
0:02:09.1]} 17. cxb6 {[%clk 0:01:27.6]} 17... Qxb6 {[%clk 0:02:05.2]} 18. Bg2
{[%clk 0:01:26.2]} 18... Nc5 {[%clk 0:02:02.6]} 19. Bd2 {[%clk 0:01:04.8]} 19...
Rd8 {[%clk 0:01:50.3]} 20. Rfd1 {[%clk 0:00:44.5]} 20... Nb3 {[%clk 0:01:41]}
21. Na4 {[%clk 0:00:41]} 21... Qb5 {[%clk 0:01:36.1]} 22. Bxb4 {[%clk
0:00:40.7]} 22... Rxd1+ {[%clk 0:01:36]} 23. Rxd1 {[%clk 0:00:40.5]} 23... Qxb4
{[%clk 0:01:35.5]} 24. Nc3 {[%clk 0:00:39.2]} 24... Nc5 {[%clk 0:01:34.3]} 25.
Rd8+ {[%clk 0:00:20.3]} 25... Kf7 {[%clk 0:01:33.5]} 26. Rc8 {[%clk 0:00:20.3]}
26... Nd3 {[%clk 0:01:18.7]} 27. Bf1 {[%clk 0:00:14.7]} 27... e4 {[%clk
0:01:15.4]} 28. Ne2 {[%clk 0:00:11.6]} 28... Qe1 {[%clk 0:01:09.4]} 0-1

[Event "*** Titled Tuesday Blitz"]
[Site "Chess.com"]
[Date "2021.03.30"]
[Round "6"]
[White "KeithArkell"]
[Black "MaxLeto"]
[Result "1-0"]
[WhiteElo "2604"]
[BlackElo "2358"]
[TimeControl "180+1"]
[EndTime "11:04:58 PDT"]
[Termination "KeithArkell won by resignation"]

1. d4 {[%clk 0:03:00.9]} 1... h5 {[%clk 0:03:00.9]} 2. h4 {[%clk 0:02:57.4]}
2... d5 {[%clk 0:03:00.1]} 3. Nf3 {[%clk 0:02:56.3]} 3... Nf6 {[%clk 0:03:00.3]}
4. Bf4 {[%clk 0:02:55]} 4... Bf5 {[%clk 0:02:58.6]} 5. e3 {[%clk 0:02:54.6]}
5... e6 {[%clk 0:02:58.5]} 6. Bd3 {[%clk 0:02:54.7]} 6... c6 {[%clk 0:02:56.1]}
7. Bxf5 {[%clk 0:02:53.8]} 7... exf5 {[%clk 0:02:57]} 8. Nbd2 {[%clk 0:02:51.6]}
8... Nbd7 {[%clk 0:02:51.8]} 9. Ne5 {[%clk 0:02:50.1]} 9... Nxe5 {[%clk
0:02:45.3]} 10. Bxe5 {[%clk 0:02:49.5]} 10... Bd6 {[%clk 0:02:42.4]} 11. Nf3
{[%clk 0:02:48.4]} 11... O-O {[%clk 0:02:30]} 12. O-O {[%clk 0:02:34.8]} 12...
Ng4 {[%clk 0:02:21.5]} 13. Bxd6 {[%clk 0:02:31.8]} 13... Qxd6 {[%clk 0:02:21.4]}
14. g3 {[%clk 0:02:32.3]} 14... Rfe8 {[%clk 0:02:18]} 15. Re1 {[%clk 0:02:28.2]}
15... Re7 {[%clk 0:01:51.7]} 16. Qd3 {[%clk 0:02:18.7]} 16... g6 {[%clk
0:01:36.9]} 17. Kg2 {[%clk 0:02:13.3]} 17... Rae8 {[%clk 0:01:35.9]} 18. c4
{[%clk 0:02:11]} 18... Re4 {[%clk 0:01:03.6]} 19. Rac1 {[%clk 0:02:07.3]} 19...
Kg7 {[%clk 0:00:54.7]} 20. Qb3 {[%clk 0:02:06.5]} 20... b6 {[%clk 0:00:33.4]}
21. cxd5 {[%clk 0:02:05.9]} 21... cxd5 {[%clk 0:00:32.1]} 22. Rc3 {[%clk
0:02:03.8]} 22... R8e7 {[%clk 0:00:13.7]} 23. Rec1 {[%clk 0:02:03.4]} 23... Nf6
{[%clk 0:00:11.3]} 24. Rc6 {[%clk 0:02:02.1]} 24... Qd8 {[%clk 0:00:10]} 25. Rc8
{[%clk 0:02:01.9]} 25... Qd6 {[%clk 0:00:07.9]} 26. Qb5 {[%clk 0:01:57.4]} 26...
Rg4 {[%clk 0:00:05.3]} 27. Qc6 {[%clk 0:01:29.5]} 27... Qb4 {[%clk 0:00:02.6]}
28. Rc2 {[%clk 0:01:22]} 28... Rf4 {[%clk 0:00:01.7]} 29. gxf4 {[%clk
0:01:20.7]} 1-0

[Event "*** Titled Tuesday Blitz"]
[Site "Chess.com"]
[Date "2021.03.30"]
[Round "6"]
[White "bsnsun"]
[Black "DanielTitichoca"]
[Result "1-0"]
[WhiteElo "2481"]
[BlackElo "2287"]
[TimeControl "180+1"]
[EndTime "11:04:59 PDT"]
[Termination "bsnsun won by resignation"]

1. d4 {[%clk 0:03:00.9]} 1... Nf6 {[%clk 0:02:59]} 2. c4 {[%clk 0:03:01]} 2...
b6 {[%clk 0:02:58.2]} 3. g3 {[%clk 0:03:00.6]} 3... Bb7 {[%clk 0:02:56.5]} 4.
Nf3 {[%clk 0:03:01.1]} 4... e6 {[%clk 0:02:56.7]} 5. Bg2 {[%clk 0:03:01.6]} 5...
c5 {[%clk 0:02:57.1]} 6. d5 {[%clk 0:02:58.7]} 6... b5 {[%clk 0:02:46.9]} 7.
dxe6 {[%clk 0:02:53.7]} 7... fxe6 {[%clk 0:02:44.8]} 8. cxb5 {[%clk 0:02:54.2]}
8... d5 {[%clk 0:02:34.1]} 9. O-O {[%clk 0:02:53.5]} 9... Nbd7 {[%clk
0:02:29.3]} 10. a4 {[%clk 0:02:49.1]} 10... a6 {[%clk 0:02:22.9]} 11. bxa6
{[%clk 0:02:48.4]} 11... Bxa6 {[%clk 0:02:14]} 12. b3 {[%clk 0:02:48.9]} 12...
Bd6 {[%clk 0:02:12]} 13. Bb2 {[%clk 0:02:48.9]} 13... O-O {[%clk 0:02:12.3]} 14.
Nbd2 {[%clk 0:02:48.6]} 14... e5 {[%clk 0:01:58.1]} 15. Re1 {[%clk 0:02:47.8]}
15... e4 {[%clk 0:01:48.4]} 16. Ng5 {[%clk 0:02:47.5]} 16... Qe8 {[%clk
0:01:35.9]} 17. Ndxe4 {[%clk 0:02:43]} 17... Be5 {[%clk 0:01:08.1]} 18. Nxf6+
{[%clk 0:02:39.1]} 18... Nxf6 {[%clk 0:01:08.6]} 19. Bxd5+ {[%clk 0:02:30.7]}
19... Kh8 {[%clk 0:01:03.4]} 20. Bxe5 {[%clk 0:02:28.9]} 20... Qxe5 {[%clk
0:00:55.8]} 21. Bxa8 {[%clk 0:02:28.2]} 21... Qxg5 {[%clk 0:00:51.2]} 22. Bg2
{[%clk 0:02:28.5]} 22... Ng4 {[%clk 0:00:35.9]} 23. f4 {[%clk 0:02:28.3]} 23...
Qh6 {[%clk 0:00:15.3]} 24. h3 {[%clk 0:02:17.9]} 24... Ne3 {[%clk 0:00:15.4]}
25. Qd2 {[%clk 0:02:15.1]} 25... Nxg2 {[%clk 0:00:15.1]} 26. Kxg2 {[%clk
0:02:15.6]} 26... Bb7+ {[%clk 0:00:13.4]} 27. Kh2 {[%clk 0:02:14.9]} 27... g5
{[%clk 0:00:11.9]} 28. Qc3+ {[%clk 0:01:57.2]} 28... Kg8 {[%clk 0:00:10.4]} 29.
Qc4+ {[%clk 0:01:57.6]} 29... Kh8 {[%clk 0:00:08.9]} 30. e3 {[%clk 0:01:45.8]}
30... Qc6 {[%clk 0:00:05.4]} 31. Qc3+ {[%clk 0:01:43.7]} 31... Kg8 {[%clk
0:00:03.4]} 32. e4 {[%clk 0:01:44.1]} 32... gxf4 {[%clk 0:00:02.7]} 33. gxf4
{[%clk 0:01:44.6]} 33... Rxf4 {[%clk 0:00:03.5]} 34. Qg3+ {[%clk 0:01:44.4]}
34... Kf7 {[%clk 0:00:03.8]} 35. Qxf4+ {[%clk 0:01:44.5]} 35... Ke8 {[%clk
0:00:03.9]} 36. Rad1 {[%clk 0:01:44.6]} 1-0

[Event "*** Titled Tuesday Blitz"]
[Site "Chess.com"]
[Date "2021.03.30"]
[Round "6"]
[White "tptagain"]
[Black "A-Fier"]
[Result "1-0"]
[WhiteElo "2827"]
[BlackElo "2669"]
[TimeControl "180+1"]
[EndTime "11:05:01 PDT"]
[Termination "tptagain won by resignation"]

1. Nf3 {[%clk 0:03:00.9]} 1... Nf6 {[%clk 0:02:58.2]} 2. b3 {[%clk 0:03:01]}
2... g6 {[%clk 0:02:58.3]} 3. Bb2 {[%clk 0:03:01.7]} 3... Bg7 {[%clk 0:02:58.8]}
4. g3 {[%clk 0:03:02.1]} 4... O-O {[%clk 0:02:59.4]} 5. Bg2 {[%clk 0:03:02.1]}
5... c5 {[%clk 0:02:59.9]} 6. c4 {[%clk 0:03:02.3]} 6... Nc6 {[%clk 0:02:58.4]}
7. O-O {[%clk 0:03:01.8]} 7... d6 {[%clk 0:02:58.7]} 8. d4 {[%clk 0:02:59.1]}
8... cxd4 {[%clk 0:02:59.6]} 9. Nxd4 {[%clk 0:02:59.6]} 9... Bd7 {[%clk
0:03:00.2]} 10. Nc3 {[%clk 0:02:55.8]} 10... Rc8 {[%clk 0:02:58.9]} 11. Nxc6
{[%clk 0:02:54.3]} 11... Bxc6 {[%clk 0:02:58.4]} 12. Bxc6 {[%clk 0:02:46.4]}
12... bxc6 {[%clk 0:02:56.1]} 13. Qd3 {[%clk 0:02:44.7]} 13... Nd7 {[%clk
0:02:54.1]} 14. Qc2 {[%clk 0:02:44.2]} 14... Qa5 {[%clk 0:02:53.4]} 15. Na4
{[%clk 0:02:43]} 15... Bxb2 {[%clk 0:02:47.3]} 16. Nxb2 {[%clk 0:02:43]} 16...
Qh5 {[%clk 0:02:47]} 17. Rfd1 {[%clk 0:02:40.1]} 17... Ne5 {[%clk 0:02:46.3]}
18. f3 {[%clk 0:02:37.7]} 18... c5 {[%clk 0:02:46.4]} 19. Nd3 {[%clk 0:02:37.3]}
19... Nc6 {[%clk 0:02:46.3]} 20. Nf4 {[%clk 0:02:37.4]} 20... Qe5 {[%clk
0:02:44.6]} 21. Kf2 {[%clk 0:02:24]} 21... a5 {[%clk 0:02:44.2]} 22. e3 {[%clk
0:02:23.1]} 22... Ra8 {[%clk 0:02:43.5]} 23. Nd5 {[%clk 0:02:19.5]} 23... a4
{[%clk 0:02:42.2]} 24. bxa4 {[%clk 0:02:09.4]} 24... Ra7 {[%clk 0:02:41.4]} 25.
Rab1 {[%clk 0:01:56.4]} 25... Rfa8 {[%clk 0:02:34.6]} 26. Nc3 {[%clk 0:01:56.3]}
26... Qe6 {[%clk 0:02:31]} 27. Qe2 {[%clk 0:01:49.7]} 27... Ne5 {[%clk
0:02:27.4]} 28. Rd5 {[%clk 0:01:41.8]} 28... Qh3 {[%clk 0:02:19.7]} 29. Kg1
{[%clk 0:01:40.2]} 29... h5 {[%clk 0:02:08.9]} 30. f4 {[%clk 0:01:27.5]} 30...
Nc6 {[%clk 0:02:05.5]} 31. Rd2 {[%clk 0:01:15.4]} 31... Qe6 {[%clk 0:02:03.4]}
32. Rdb2 {[%clk 0:01:09.6]} 32... Kh7 {[%clk 0:01:51]} 33. Rb7 {[%clk
0:01:09.6]} 33... Nb4 {[%clk 0:01:49.1]} 34. Rxa7 {[%clk 0:01:08.9]} 34... Rxa7
{[%clk 0:01:49.5]} 35. a3 {[%clk 0:01:08.2]} 35... Nc6 {[%clk 0:01:49.8]} 36.
Qd3 {[%clk 0:01:05.4]} 36... Na5 {[%clk 0:01:43.6]} 37. Nd5 {[%clk 0:01:04.4]}
37... Nc6 {[%clk 0:01:43.9]} 38. Rb6 {[%clk 0:01:03.2]} 38... Qd7 {[%clk
0:01:37.7]} 39. Qb3 {[%clk 0:00:57.9]} 39... h4 {[%clk 0:01:35.4]} 40. Kg2
{[%clk 0:00:47.5]} 40... h3+ {[%clk 0:01:35.1]} 41. Kf3 {[%clk 0:00:47.3]} 41...
e5 {[%clk 0:01:07.5]} 42. Nf6+ {[%clk 0:00:43.2]} 1-0

[Event "*** Titled Tuesday Blitz"]
[Site "Chess.com"]
[Date "2021.03.30"]
[Round "6"]
[White "korkmaz16"]
[Black "nicolochessit"]
[Result "1-0"]
[WhiteElo "2480"]
[BlackElo "2258"]
[TimeControl "180+1"]
[EndTime "11:05:01 PDT"]
[Termination "korkmaz16 won by resignation"]

1. e4 {[%clk 0:03:00.9]} 1... c6 {[%clk 0:02:58.9]} 2. d4 {[%clk 0:03:00.3]}
2... d5 {[%clk 0:02:59.8]} 3. e5 {[%clk 0:03:00.4]} 3... c5 {[%clk 0:02:59.5]}
4. dxc5 {[%clk 0:02:56.3]} 4... e6 {[%clk 0:02:59.5]} 5. Be3 {[%clk 0:02:55.4]}
5... Nd7 {[%clk 0:02:57.4]} 6. Bb5 {[%clk 0:02:52.2]} 6... Ne7 {[%clk
0:02:53.1]} 7. Nf3 {[%clk 0:02:42.3]} 7... Nc6 {[%clk 0:02:50.2]} 8. Bxc6 {[%clk
0:02:37.6]} 8... bxc6 {[%clk 0:02:51.1]} 9. b4 {[%clk 0:02:37.7]} 9... a5 {[%clk
0:02:46.8]} 10. c3 {[%clk 0:02:34.9]} 10... axb4 {[%clk 0:02:33.4]} 11. cxb4
{[%clk 0:02:35.8]} 11... Ba6 {[%clk 0:02:32.9]} 12. Nc3 {[%clk 0:02:35.8]} 12...
Qc7 {[%clk 0:02:25.6]} 13. Bd4 {[%clk 0:02:33]} 13... Rb8 {[%clk 0:02:04.9]} 14.
a3 {[%clk 0:02:32.3]} 14... Be7 {[%clk 0:01:35.2]} 15. Ne2 {[%clk 0:02:31.6]}
15... O-O {[%clk 0:01:13.1]} 16. O-O {[%clk 0:02:31.1]} 16... f6 {[%clk
0:01:11.7]} 17. exf6 {[%clk 0:02:30.7]} 17... Bxf6 {[%clk 0:01:12.6]} 18. Re1
{[%clk 0:02:23.1]} 18... Bxe2 {[%clk 0:01:09.2]} 19. Qxe2 {[%clk 0:02:09.4]}
19... Bxd4 {[%clk 0:01:01.3]} 20. Nxd4 {[%clk 0:02:08.6]} 20... e5 {[%clk
0:01:00.8]} 21. Ne6 {[%clk 0:02:08.8]} 21... Qa7 {[%clk 0:00:52.7]} 22. Nxf8
{[%clk 0:02:08.6]} 22... Rxf8 {[%clk 0:00:53.6]} 23. Qg4 {[%clk 0:02:06]} 23...
Nf6 {[%clk 0:00:52.4]} 24. Qe6+ {[%clk 0:02:04.5]} 24... Kh8 {[%clk 0:00:48.4]}
25. Qxc6 {[%clk 0:01:49.9]} 25... Qf7 {[%clk 0:00:36.4]} 26. Rxe5 {[%clk
0:01:33.2]} 26... Ne4 {[%clk 0:00:26.8]} 27. f3 {[%clk 0:01:27.1]} 27... Nd2
{[%clk 0:00:16.2]} 28. Qxd5 {[%clk 0:01:23.2]} 28... Qf4 {[%clk 0:00:09.3]} 29.
Rd1 {[%clk 0:01:18.3]} 29... Qe3+ {[%clk 0:00:06.2]} 30. Rxe3 {[%clk 0:01:17.7]}
1-0

[Event "*** Titled Tuesday Blitz"]
[Site "Chess.com"]
[Date "2021.03.30"]
[Round "6"]
[White "Chessbard1972"]
[Black "kikydu96"]
[Result "0-1"]
[WhiteElo "2228"]
[BlackElo "2475"]
[TimeControl "180+1"]
[EndTime "11:05:02 PDT"]
[Termination "kikydu96 won on time"]

1. e4 {[%clk 0:03:00.9]} 1... c5 {[%clk 0:02:57.5]} 2. Nc3 {[%clk 0:02:57.8]}
2... a6 {[%clk 0:02:52.3]} 3. a4 {[%clk 0:02:57]} 3... Nc6 {[%clk 0:02:50.6]} 4.
f4 {[%clk 0:02:55.1]} 4... e6 {[%clk 0:02:46.1]} 5. Bc4 {[%clk 0:02:54.1]} 5...
Nge7 {[%clk 0:02:45.4]} 6. e5 {[%clk 0:02:53.2]} 6... Nf5 {[%clk 0:02:39.1]} 7.
Ne4 {[%clk 0:02:52.4]} 7... d5 {[%clk 0:02:37.5]} 8. exd6 {[%clk 0:02:51.8]}
8... Nxd6 {[%clk 0:02:37.3]} 9. Nxd6+ {[%clk 0:02:51.8]} 9... Bxd6 {[%clk
0:02:38.2]} 10. d3 {[%clk 0:02:51.9]} 10... O-O {[%clk 0:02:34.3]} 11. Ne2
{[%clk 0:02:49.7]} 11... Qh4+ {[%clk 0:02:18.2]} 12. g3 {[%clk 0:02:35.1]} 12...
Qh3 {[%clk 0:02:17]} 13. Kf2 {[%clk 0:02:31.6]} 13... e5 {[%clk 0:02:08.7]} 14.
Ng1 {[%clk 0:02:29.8]} 14... Qf5 {[%clk 0:01:58.1]} 15. Ne2 {[%clk 0:02:12.1]}
15... exf4 {[%clk 0:01:47.5]} 16. gxf4 {[%clk 0:01:35.4]} 16... Re8 {[%clk
0:01:36.6]} 17. Ng3 {[%clk 0:01:27.9]} 17... Qf6 {[%clk 0:01:34.1]} 18. Kg2
{[%clk 0:01:16.6]} 18... Qh4 {[%clk 0:01:26.6]} 19. f5 {[%clk 0:01:04.9]} 19...
Nd4 {[%clk 0:01:15.9]} 20. Rf1 {[%clk 0:01:01.3]} 20... Bd7 {[%clk 0:01:12.6]}
21. c3 {[%clk 0:00:51.1]} 21... Re2+ {[%clk 0:01:05.8]} 22. Qxe2 {[%clk
0:00:39.1]} 22... Nxe2 {[%clk 0:01:04.4]} 23. Nxe2 {[%clk 0:00:37.3]} 23... Bc6+
{[%clk 0:01:02.9]} 0-1

[Event "*** Titled Tuesday Blitz"]
[Site "Chess.com"]
[Date "2021.03.30"]
[Round "6"]
[White "steka121"]
[Black "mishanick"]
[Result "1-0"]
[WhiteElo "2414"]
[BlackElo "2937"]
[TimeControl "180+1"]
[EndTime "11:05:08 PDT"]
[Termination "steka121 won by checkmate"]

1. e4 {[%clk 0:02:58.5]} 1... c5 {[%clk 0:03:00.3]} 2. b3 {[%clk 0:02:58.2]}
2... Nc6 {[%clk 0:02:58.6]} 3. Bb2 {[%clk 0:02:58]} 3... Nf6 {[%clk 0:02:59]} 4.
e5 {[%clk 0:02:58.4]} 4... Nd5 {[%clk 0:02:59.3]} 5. Nf3 {[%clk 0:02:58.5]} 5...
g6 {[%clk 0:02:59.2]} 6. Ng5 {[%clk 0:02:57.2]} 6... e6 {[%clk 0:02:30.8]} 7.
Ne4 {[%clk 0:02:54.7]} 7... b6 {[%clk 0:02:27.9]} 8. c4 {[%clk 0:02:51.9]} 8...
Nf4 {[%clk 0:02:21.2]} 9. Nf6+ {[%clk 0:02:50.8]} 9... Ke7 {[%clk 0:02:21.2]}
10. Qf3 {[%clk 0:02:48.5]} 10... g5 {[%clk 0:02:12]} 11. h4 {[%clk 0:02:18.3]}
11... Ng6 {[%clk 0:02:09.9]} 12. hxg5 {[%clk 0:02:15.3]} 12... Bg7 {[%clk
0:02:09.9]} 13. d4 {[%clk 0:01:52.6]} 13... Qc7 {[%clk 0:01:45]} 14. d5 {[%clk
0:01:46.3]} 14... Ncxe5 {[%clk 0:01:44.4]} 15. Qg3 {[%clk 0:01:35.4]} 15... Bb7
{[%clk 0:01:39.2]} 16. Nc3 {[%clk 0:01:27.4]} 16... d6 {[%clk 0:01:30.2]} 17.
O-O-O {[%clk 0:01:24.6]} 17... Rad8 {[%clk 0:01:25.5]} 18. f4 {[%clk 0:01:19.2]}
18... Nd7 {[%clk 0:01:25.6]} 19. Nb5 {[%clk 0:01:15.6]} 19... Qb8 {[%clk
0:01:25.9]} 20. dxe6 {[%clk 0:01:13.3]} 20... fxe6 {[%clk 0:01:25.7]} 21. Nxd6
{[%clk 0:01:08.4]} 21... Nxf6 {[%clk 0:01:05.7]} 22. gxf6+ {[%clk 0:01:03.5]}
22... Bxf6 {[%clk 0:01:06.6]} 23. Bxf6+ {[%clk 0:01:00.9]} 23... Kxf6 {[%clk
0:01:07.5]} 24. Qc3+ {[%clk 0:00:49.1]} 24... e5 {[%clk 0:01:07.6]} 25. fxe5+
{[%clk 0:00:46.5]} 25... Ke7 {[%clk 0:01:08]} 26. Qg3 {[%clk 0:00:43.3]} 26...
Rdf8 {[%clk 0:01:02.8]} 27. Bd3 {[%clk 0:00:40]} 27... Nf4 {[%clk 0:00:59.1]}
28. Qg7+ {[%clk 0:00:36.7]} 28... Kd8 {[%clk 0:00:59.4]} 29. Nxb7+ {[%clk
0:00:36.7]} 29... Kc8 {[%clk 0:00:59.9]} 30. Bf5+ {[%clk 0:00:29.6]} 30... Rxf5
{[%clk 0:00:56.7]} 31. Qd7# {[%clk 0:00:29.5]} 1-0

[Event "*** Titled Tuesday Blitz"]
[Site "Chess.com"]
[Date "2021.03.30"]
[Round "6"]
[White "Harry_Rakkel"]
[Black "Rytenko_V"]
[Result "1-0"]
[WhiteElo "2601"]
[BlackElo "2403"]
[TimeControl "180+1"]
[EndTime "11:05:09 PDT"]
[Termination "Harry_Rakkel won on time"]

1. e4 {[%clk 0:03:00.9]} 1... e6 {[%clk 0:03:00.1]} 2. d4 {[%clk 0:02:59.9]}
2... d5 {[%clk 0:03:01]} 3. Nc3 {[%clk 0:02:59.6]} 3... Bb4 {[%clk 0:03:00.8]}
4. e5 {[%clk 0:02:59.6]} 4... Ne7 {[%clk 0:03:00]} 5. a3 {[%clk 0:02:59.2]} 5...
Bxc3+ {[%clk 0:03:00.2]} 6. bxc3 {[%clk 0:03:00.1]} 6... b6 {[%clk 0:03:00.8]}
7. Bb5+ {[%clk 0:02:59.6]} 7... c6 {[%clk 0:02:56.1]} 8. Bd3 {[%clk 0:02:59.3]}
8... Ba6 {[%clk 0:02:56.2]} 9. Qg4 {[%clk 0:02:58.6]} 9... Bxd3 {[%clk
0:02:50.1]} 10. cxd3 {[%clk 0:02:59.5]} 10... O-O {[%clk 0:02:50]} 11. Nf3
{[%clk 0:02:57.1]} 11... Kh8 {[%clk 0:02:34.7]} 12. h4 {[%clk 0:02:56.3]} 12...
h6 {[%clk 0:02:24.6]} 13. h5 {[%clk 0:02:55]} 13... c5 {[%clk 0:02:14.6]} 14.
Nh4 {[%clk 0:02:48.1]} 14... Nbc6 {[%clk 0:02:05.8]} 15. Rh3 {[%clk 0:02:45.6]}
15... f5 {[%clk 0:01:43.3]} 16. Qf4 {[%clk 0:02:21.4]} 16... Kh7 {[%clk
0:01:34.1]} 17. a4 {[%clk 0:02:19.5]} 17... Qe8 {[%clk 0:01:28.1]} 18. Nf3
{[%clk 0:02:02.2]} 18... cxd4 {[%clk 0:01:22.7]} 19. cxd4 {[%clk 0:01:55.3]}
19... Rc8 {[%clk 0:01:22.6]} 20. Ba3 {[%clk 0:01:53.7]} 20... Na5 {[%clk
0:01:11.2]} 21. Nh4 {[%clk 0:01:47]} 21... Rf7 {[%clk 0:00:31.7]} 22. Bd6 {[%clk
0:01:13.1]} 22... Rc3 {[%clk 0:00:20.8]} 23. g4 {[%clk 0:01:07.9]} 23... fxg4
{[%clk 0:00:13.6]} 24. Qxg4 {[%clk 0:01:08.8]} 24... Qf8 {[%clk 0:00:04.9]} 25.
Ng6 {[%clk 0:01:03]} 25... Nxg6 {[%clk 0:00:01.2]} 26. hxg6+ {[%clk 0:01:02.9]}
1-0